bitfinex/quotes_BTCUSD_20240617
["timestamp","ask_amount","ask_price","bid_price","bid_amount"]
[1718648074096,2.23174772,66929.0,66928.0,9.01036478]
[1718648074319,1.93292372,66929.0,66928.0,9.01036478]
[1718648074522,0.73102572,66929.0,66928.0,9.01036478]
[1718648074728,0.59867472,66929.0,66928.0,9.00936478]
[1718648074867,0.43194584,66929.0,66928.0,9.00936478]
[1718648075072,0.44594584,66929.0,66928.0,9.00936478]
[1718648075294,0.59535784,66929.0,66928.0,9.00936478]
[1718648075602,0.34594584,66929.0,66928.0,9.00936478]
[1718648076038,0.33194584,66929.0,66928.0,9.00936478]
[1718648076391,0.34594584,66929.0,66928.0,9.00936478]
[1718648077508,0.35994584,66929.0,66928.0,9.00936478]
[1718648077873,0.49535784,66929.0,66928.0,9.00936478]
[1718648078056,0.48135784,66929.0,66928.0,9.00936478]
[1718648078288,0.35994584,66929.0,66928.0,9.00936478]
[1718648078690,0.34594584,66929.0,66928.0,9.00936478]
[1718648079101,0.49535784,66929.0,66928.0,9.00936478]
[1718648079313,0.79418184,66929.0,66928.0,9.00936478]
[1718648079545,1.24573472,66929.0,66928.0,9.00936478]
[1718648079769,0.96091072,66929.0,66928.0,9.00936478]
[1718648079957,0.51267472,66929.0,66928.0,9.00936478]
[1718648080157,0.66208672,66929.0,66928.0,9.00936478]
[1718648080376,0.96091072,66929.0,66928.0,9.00936478]
[1718648080590,0.66208672,66929.0,66928.0,9.00936478]
[1718648080983,0.96091072,66929.0,66928.0,9.00936478]
[1718648083142,1.25973472,66929.0,66928.0,9.00936478]
[1718648083339,1.44471488,66929.0,66928.0,9.00936478]
[1718648083748,1.37973472,66929.0,66928.0,9.01288342]
[1718648084071,1.37975876,66929.0,66928.0,9.01288342]
[1718648084906,0.61269876,66929.0,66928.0,9.01288342]
[1718648085309,0.45996988,66929.0,66928.0,9.01288342]
[1718648086525,0.60938188,66929.0,66928.0,9.01288342]
[1718648086726,1.75645173,66929.0,66928.0,9.01288342]
[1718648086929,1.19569876,66929.0,66928.0,9.01288342]
[1718648087504,1.34511076,66929.0,66928.0,9.01288342]
[1718648087888,1.19569876,66929.0,66928.0,9.01288342]
[1718648088093,0.35996988,66929.0,66928.0,9.16229742]
[1718648088332,0.45996988,66929.0,66928.0,9.01288342]
[1718648091394,0.04981331,66929.0,66928.0,9.00788342]
[1718648091600,0.35995116,66929.0,66928.0,9.00788342]
[1718648091806,0.45995116,66929.0,66928.0,9.00788342]
[1718648092434,0.87153535,66929.0,66928.0,9.00788342]
[1718648092646,1.56826344,66929.0,66928.0,9.00788342]
[1718648092855,2.38346999,66929.0,66928.0,9.00788342]
[1718648093065,3.55281399,66929.0,66928.0,9.00788342]
[1718648093275,3.10877677,66929.0,66928.0,9.00788342]
[1718648093502,3.10877677,66929.0,66928.0,9.00436478]
[1718648093712,3.10877677,66929.0,66928.0,9.00772766]
[1718648093917,2.64356999,66929.0,66928.0,9.00772766]
[1718648094122,3.10877677,66929.0,66928.0,9.00772766]
[1718648094535,3.94344399,66929.0,66928.0,9.00772766]
[1718648094740,4.40865077,66929.0,66928.0,9.00772766]
[1718648095184,7.04337477,66929.0,66928.0,8.78255001]
[1718648095457,7.58669877,66929.0,66928.0,7.13932001]
[1718648095661,7.56914973,66929.0,66928.0,6.75161967]
[1718648095909,7.85109029,66929.0,66928.0,6.75161967]
[1718648096142,7.79669154,66929.0,66928.0,6.75161967]
[1718648096367,7.79669154,66929.0,66928.0,5.83511967]
[1718648096368,7.82469154,66929.0,66928.0,5.83511967]
[1718648096581,7.81069154,66929.0,66928.0,5.74511967]
[1718648096807,7.79669154,66929.0,66928.0,5.70211967]
[1718648097072,7.26803629,66929.0,66928.0,5.70211967]
[1718648097274,7.3082882,66929.0,66928.0,5.70211967]
[1718648097625,7.39091396,66929.0,66928.0,5.60379592]
[1718648098037,7.64933921,66929.0,66928.0,5.60379592]
[1718648098212,7.60228066,66929.0,66928.0,5.60379592]
[1718648098400,6.45511922,66929.0,66928.0,5.56913745]
[1718648098601,11.07033422,66929.0,66928.0,5.56913745]
[1718648098847,11.05633422,66929.0,66928.0,5.56913745]
[1718648099218,11.04233422,66929.0,66928.0,5.56913745]
[1718648099690,11.05633422,66929.0,66928.0,5.56913745]
[1718648099889,11.07033422,66929.0,66928.0,5.56913745]
[1718648100112,11.05633422,66929.0,66928.0,5.56913745]
[1718648100324,11.13464203,66929.0,66928.0,5.34341294]
[1718648100538,11.32528106,66929.0,66928.0,5.08600885]
[1718648100682,11.33928106,66929.0,66928.0,5.05010803]
[1718648100886,9.97606525,66929.0,66928.0,5.05010803]
[1718648101098,6.89265703,66929.0,66928.0,5.05010803]
[1718648101307,6.80463468,66929.0,66928.0,5.04674515]
[1718648101463,5.84560702,66929.0,66928.0,5.05016711]
[1718648101670,2.82515302,66929.0,66928.0,5.05016711]
[1718648101979,2.14777524,66929.0,66928.0,5.05016711]
[1718648102184,2.09138004,66929.0,66928.0,5.05016711]
[1718648102376,1.91065588,66929.0,66928.0,5.05016711]
[1718648102580,1.88884257,66929.0,66928.0,5.05016711]
[1718648102776,2.04255558,66929.0,66928.0,5.05016711]
[1718648102982,1.91684257,66929.0,66928.0,5.79723711]
[1718648103221,1.90284257,66929.0,66928.0,5.79723711]
[1718648103426,1.90284257,66929.0,66928.0,5.81723711]
[1718648103632,1.5927,66929.0,66928.0,5.79723711]
[1718648103849,1.90278611,66929.0,66928.0,5.79723711]
[1718648104060,1.5927,66929.0,66928.0,6.09606511]
[1718648104544,1.5927,66929.0,66928.0,6.70166511]
[1718648105798,1.6067,66929.0,66928.0,6.68166511]
[1718648105981,1.5927,66929.0,66928.0,6.08400911]
[1718648106189,1.5787,66929.0,66928.0,6.40283711]
[1718648106387,1.5927,66929.0,66928.0,6.70166511]
[1718648107225,1.5927,66929.0,66928.0,6.38283711]
[1718648107425,1.5917,66929.0,66928.0,6.40283711]
[1718648107834,1.5917,66929.0,66928.0,6.70166511]
[1718648108247,1.5917,66929.0,66928.0,6.38283711]
[1718648108662,1.5917,66929.0,66928.0,6.40283711]
[1718648108880,1.6047,66929.0,66928.0,6.08400911]
[1718648109296,1.5917,66929.0,66928.0,6.08495511]
[1718648109502,1.5917,66929.0,66928.0,6.38378311]
[1718648109702,1.60356,66929.0,66928.0,6.40378311]
[1718648109911,1.60356,66929.0,66928.0,6.70261111]
[1718648110658,1.60356,66929.0,66928.0,6.40378311]
[1718648110867,1.60356,66929.0,66928.0,6.38378311]
[1718648111273,1.60356,66929.0,66928.0,6.08495511]
[1718648111477,1.60356,66929.0,66928.0,6.38378311]
[1718648111680,1.60356,66929.0,66928.0,6.40378311]
[1718648111891,1.60356,66929.0,66928.0,6.85533999]
[1718648112133,1.60356,66929.0,66928.0,6.95733999]
[1718648112333,1.33696,66929.0,66928.0,7.25616799]
[1718648112531,0.00086,66950.0,66949.0,0.149367]
[1718648112677,0.00086,66950.0,66949.0,1.557469]
[1718648113038,0.00086,66950.0,66949.0,1.56081163]
[1718648113240,0.00086,66950.0,66949.0,1.26207763]
[1718648113469,0.00086,66950.0,66949.0,1.56081163]
[1718648114121,0.00086,66950.0,66949.0,1.85954563]
[1718648114358,0.00086,66950.0,66949.0,1.56081163]
[1718648115096,0.00086,66950.0,66949.0,1.85954563]
[1718648115303,0.00086,66950.0,66949.0,2.11427451]
[1718648115981,0.00186,66950.0,66949.0,2.12627451]
[1718648116191,0.00186,66950.0,66949.0,1.72554051]
[1718648116418,0.00086,66950.0,66949.0,1.60930651]
[1718648116815,0.00186,66950.0,66949.0,1.92004051]
[1718648117253,0.00186,66950.0,66949.0,2.32077451]
[1718648118130,0.00186,66950.0,66949.0,2.61950851]
[1718648118344,0.00186,66950.0,66949.0,2.32077451]
[1718648118748,0.00186,66950.0,66949.0,2.33477451]
[1718648119201,0.00186,66950.0,66949.0,2.33467451]
[1718648120011,0.00186,66950.0,66949.0,2.63340851]
[1718648120214,0.00186,66950.0,66949.0,2.33467451]
[1718648120630,0.00186,66950.0,66949.0,2.23267451]
[1718648120842,0.00186,66950.0,66949.0,2.33467451]
[1718648121051,0.00186,66950.0,66949.0,1.73954051]
[1718648121263,0.00186,66950.0,66949.0,1.93394051]
[1718648121979,0.00186,66950.0,66949.0,1.63520651]
[1718648122926,0.00186,66950.0,66949.0,2.03594051]
[1718648123332,0.00186,66950.0,66949.0,2.33467451]
[1718648123774,0.00186,66950.0,66949.0,2.03594051]
[1718648124399,0.00186,66950.0,66949.0,2.33467451]
[1718648124602,0.00086,66950.0,66949.0,2.30867451]
[1718648124809,0.00086,66950.0,66949.0,1.92194051]
[1718648125019,0.00086,66950.0,66949.0,1.93594051]
[1718648125020,0.00186,66950.0,66949.0,1.93594051]
[1718648125429,0.00186,66950.0,66949.0,2.03794051]
[1718648125745,0.00186,66950.0,66949.0,1.93594051]
[1718648126798,0.00186,66950.0,66949.0,2.03794051]
[1718648127023,0.00186,66950.0,66949.0,1.93594051]
[1718648128724,0.00186,66950.0,66949.0,2.03794051]
[1718648128940,0.00186,66950.0,66949.0,2.33667451]
[1718648129136,0.00186,66950.0,66949.0,2.03794051]
[1718648130385,0.00186,66950.0,66949.0,2.33667451]
[1718648130734,0.00186,66950.0,66949.0,2.03794051]
[1718648130942,0.00186,66950.0,66949.0,2.33667451]
[1718648131349,0.00186,66950.0,66949.0,1.93594051]
[1718648131560,0.00186,66950.0,66949.0,2.33577276]
[1718648131762,0.00186,66950.0,66949.0,2.33747109]
[1718648131974,0.00186,66950.0,66949.0,2.73620509]
[1718648132175,0.00186,66950.0,66949.0,2.83620509]
[1718648132380,0.00086,66961.0,66960.0,2.052982]
[1718648132628,0.00086,66961.0,66960.0,2.40011088]
[1718648132765,0.00086,66961.0,66960.0,2.50424613]
[1718648132951,0.28724403,66989.0,66988.0,0.44784]
[1718648132952,0.2658,66989.0,66988.0,0.44784]
[1718648133148,0.2658,66995.0,66985.0,0.1944]
[1718648133347,0.2658,66995.0,66994.0,0.149267]
[1718648133592,0.2658,66995.0,66994.0,0.447801]
[1718648133799,0.05,66999.0,66995.0,0.746322]
[1718648134043,0.05,66999.0,66995.0,0.447793]
[1718648134265,0.05,66999.0,66995.0,0.149264]
[1718648134458,0.05,66999.0,66988.0,0.298559]
[1718648134682,0.004,66995.0,66994.0,0.150265]
[1718648134924,0.004,66995.0,66994.0,0.001]
[1718648135340,0.35980675,66999.0,66973.0,0.02132614]
[1718648135341,0.05,66999.0,66987.0,0.298561]
[1718648135625,0.05,66999.0,66995.0,0.001]
[1718648135626,0.0021582,66996.0,66995.0,0.001]
[1718648135739,0.31196088,66996.0,66995.0,0.001]
[1718648135942,0.31096088,66996.0,66988.0,0.149279]
[1718648136153,0.3098092,66995.0,66994.0,0.001]
[1718648136565,0.3098092,66995.0,66989.0,0.149276]
[1718648136761,0.2508,66993.0,66971.0,0.02]
[1718648136960,0.4625504,66992.0,66969.0,0.02]
[1718648137175,0.30982152,66991.0,66973.0,0.02]
[1718648137380,0.30982152,66991.0,66975.0,0.298616]
[1718648137381,0.15272888,66990.0,66975.0,0.298616]
[1718648137604,0.30982152,66989.0,66988.0,0.14928]
[1718648137806,0.2508,66993.0,66989.0,0.001]
[1718648138008,0.2508,66993.0,66990.0,0.0040321]
[1718648138216,0.004,66995.0,66990.0,0.0040321]
[1718648138415,0.0151582,66996.0,66986.0,0.02]
[1718648138416,0.0011582,66996.0,66986.0,0.02]
[1718648138617,0.0011582,66996.0,66987.0,0.298562]
[1718648138827,0.0011582,66996.0,66977.0,0.07593072]
[1718648139033,0.013,66989.0,66988.0,0.001]
[1718648139849,0.77066446,66989.0,66988.0,0.001]
[1718648140052,0.149283,66987.0,66976.0,0.149305]
[1718648140254,0.60838646,66989.0,66975.0,0.149308]
[1718648140255,0.57293046,66986.0,66975.0,0.149308]
[1718648140469,0.30983046,66985.0,66976.0,0.139305]
[1718648140818,0.30983046,66985.0,66968.0,0.27033072]
[1718648140819,0.3229,66984.0,66968.0,0.27033072]
[1718648141021,0.30983046,66983.0,66968.0,0.07593072]
[1718648141263,0.149311,66975.0,66968.0,0.07593072]
[1718648141472,0.30989119,66974.0,66968.0,0.07593072]
[1718648141687,0.30989119,66973.0,66968.0,0.07593072]
[1718648141897,0.3229,66984.0,66976.0,0.001]
[1718648142095,0.149304,66977.0,66976.0,0.001]
[1718648142301,0.30987533,66977.0,66976.0,0.001]
[1718648142512,0.30987533,66977.0,66968.0,0.07593072]
[1718648142722,0.30987533,66976.0,66969.0,0.149322]
[1718648142898,0.30987533,66975.0,66969.0,0.149322]
[1718648143105,0.001,66973.0,66969.0,0.02]
[1718648143307,0.001,66973.0,66972.0,0.149316]
[1718648143507,0.2631,66989.0,66976.0,0.01]
[1718648143685,0.2631,66989.0,66972.0,0.34712888]
[1718648143686,0.30987133,66988.0,66977.0,0.149303]
[1718648144040,0.001,66977.0,66972.0,0.34712888]
[1718648144169,0.001,66977.0,66974.0,0.298622]
[1718648144580,0.001,66977.0,66975.0,0.22523972]
[1718648144819,0.00093395,66977.0,66975.0,0.22523972]
[1718648145024,0.00093395,66977.0,66976.0,0.149307]
[1718648145179,0.00093395,66977.0,66976.0,0.746535]
[1718648146026,0.005,66988.0,66980.0,0.149297]
[1718648146300,0.30984148,66987.0,66975.0,0.07593072]
[1718648146441,0.30984148,66986.0,66976.0,0.001]
[1718648146646,0.30984148,66985.0,66976.0,0.001]
[1718648146822,0.005,66988.0,66967.0,0.298652]
[1718648146823,0.30984148,66984.0,66967.0,0.318652]
[1718648147028,0.149296,66981.0,66976.0,0.014]
[1718648147227,0.30984148,66980.0,66976.0,0.014]
[1718648147456,0.30984148,66979.0,66973.0,0.149313]
[1718648147665,0.169289,66984.0,66976.0,0.014]
[1718648147666,0.30984148,66978.0,66976.0,0.014]
[1718648147863,0.30984148,66977.0,66976.0,0.014]
[1718648148273,0.30984148,66977.0,66974.0,0.149311]
[1718648148481,0.30984148,66976.0,66971.0,0.298634]
[1718648148681,0.005,66980.0,66975.0,0.149307]
[1718648148848,0.30986734,66979.0,66972.0,0.298632]
[1718648149051,0.30986734,66979.0,66967.0,0.29865]
[1718648149276,0.30986734,66978.0,66967.0,0.29865]
[1718648149486,0.30986734,66977.0,66976.0,0.001]
[1718648149729,0.30986734,66979.0,66976.0,0.001]
[1718648149940,0.30986734,66979.0,66965.0,0.318662]
[1718648149941,0.0490152,66978.0,66961.0,0.07593072]
[1718648150138,0.149319,66971.0,66961.0,0.07593072]
[1718648150379,0.30986734,66977.0,66961.0,0.07593072]
[1718648150380,0.30986734,66970.0,66961.0,0.07593072]
[1718648150616,0.30986734,66969.0,66961.0,0.07593072]
[1718648150787,0.30986734,66968.0,66961.0,0.07593072]
[1718648151084,0.30986734,66967.0,66961.0,0.22526872]
[1718648151323,0.298618,66976.0,66961.0,0.07593072]
[1718648151324,0.30986734,66966.0,66961.0,0.07593072]
[1718648151541,0.02,66973.0,66961.0,0.07593072]
[1718648151701,0.30991468,66972.0,66963.0,0.149335]
[1718648151862,0.30991468,66971.0,66961.0,0.08993072]
[1718648152067,0.298647,66969.0,66961.0,0.014]
[1718648152273,0.298647,66969.0,66955.0,0.2617]
[1718648152274,0.2412,66967.0,66955.0,0.2617]
[1718648152473,0.45924468,66966.0,66961.0,0.014]
[1718648152682,0.3231,66965.0,66961.0,0.014]
[1718648152927,0.448014,66962.0,66961.0,0.014]
[1718648153169,0.448033,66960.0,66947.0,0.1944]
[1718648153403,0.3231,66965.0,66945.0,0.3224]
[1718648153404,0.30992832,66959.0,66945.0,0.3224]
[1718648153607,0.30992832,66958.0,66944.0,0.52953072]
[1718648153829,0.30992832,66957.0,66944.0,0.52953072]
[1718648154040,0.298675,66963.0,66949.0,0.318733]
[1718648154041,0.30992832,66956.0,66949.0,0.318733]
[1718648154249,0.01,66962.0,66952.0,0.14936]
[1718648154467,0.30996427,66961.0,66953.0,0.07593072]
[1718648154862,0.3231,66965.0,66953.0,0.07593072]
[1718648154863,0.30996427,66960.0,66953.0,0.07593072]
[1718648154987,0.3231,66965.0,66953.0,0.07593072]
[1718648155191,0.30995209,66964.0,66954.0,0.29871]
[1718648155387,0.30995209,66964.0,66959.0,0.149343]
[1718648155610,0.30995209,66964.0,66958.0,0.149345]
[1718648156033,0.30995209,66964.0,66959.0,0.00396758]
[1718648156577,0.30995209,66964.0,66955.0,0.02]
[1718648156691,0.013,66962.0,66960.0,0.00396758]
[1718648156904,0.3231,66965.0,66964.0,0.149333]
[1718648157108,0.63303955,66965.0,66961.0,0.30264858]
[1718648157309,0.32393955,66964.0,66963.0,0.149336]
[1718648157506,0.33793955,66964.0,66963.0,0.149336]
[1718648157740,0.32393955,66964.0,66960.0,0.149341]
[1718648157944,0.30993955,66963.0,66961.0,0.149339]
[1718648158116,0.014,66962.0,66961.0,0.149339]
[1718648158313,0.32393955,66962.0,66961.0,0.149339]
[1718648158583,0.32393955,66962.0,66961.0,0.150339]
[1718648158792,0.32393955,66962.0,66961.0,0.15430658]
[1718648158931,0.32393955,66962.0,66961.0,0.15330658]
[1718648159336,0.32393955,66962.0,66961.0,0.00396758]
[1718648159556,0.30993955,66962.0,66961.0,0.00396758]
[1718648159766,0.3231,66965.0,66962.0,0.298675]
[1718648159968,0.3231,66965.0,66964.0,0.448]
[1718648160190,0.30993963,66965.0,66964.0,0.746667]
[1718648160367,0.31,66971.0,66966.0,0.149329]
[1718648160833,0.31,66971.0,66970.0,0.14932]
[1718648160985,0.2611,66973.0,66972.0,0.447948]
[1718648161147,0.2611,66973.0,66972.0,0.149316]
[1718648161349,0.2611,66973.0,66972.0,0.45191558]
[1718648161637,0.30990592,66973.0,66972.0,0.15328358]
[1718648161847,0.02,66991.0,66985.0,0.149285]
[1718648162066,0.46259654,66990.0,66986.0,0.00383533]
[1718648162275,0.30986766,66989.0,66974.0,0.02]
[1718648162482,0.574,66987.0,66977.0,0.02]
[1718648162703,0.30986766,66986.0,66977.0,0.02]
[1718648162916,0.30986766,66986.0,66975.0,0.1944]
[1718648162917,0.30986766,66986.0,66978.0,0.02]
[1718648163382,0.574,66987.0,66979.0,0.02]
[1718648163617,0.02274543,66996.0,66987.0,0.02]
[1718648163826,0.30981816,66995.0,66987.0,0.1944]
[1718648164047,0.0011582,66996.0,66987.0,0.1944]
[1718648165154,0.013,66995.0,66987.0,0.1954]
[1718648165382,0.013,66995.0,66987.0,0.001]
[1718648165596,0.30979687,66994.0,66987.0,0.001]
[1718648166213,0.013,66995.0,66987.0,0.002]
[1718648166684,0.013,66995.0,66987.0,0.001]
[1718648166911,0.30980117,66994.0,66983.0,0.02]
[1718648167138,0.0151582,66996.0,66987.0,0.001]
[1718648167342,0.0151582,66996.0,66991.0,0.02]
[1718648167574,0.0151582,66996.0,66995.0,0.02]
[1718648167575,0.0011582,66996.0,66995.0,0.02]
[1718648168683,0.0011582,66996.0,66993.0,0.2144]
[1718648169138,0.0011582,66996.0,66995.0,0.02]
[1718648169349,0.0021582,66996.0,66995.0,0.014]
[1718648169805,0.0611582,66996.0,66995.0,0.02]
[1718648170265,0.0751582,66996.0,66995.0,0.02]
[1718648170702,0.0621582,66996.0,66995.0,0.02]
[1718648170916,0.0631582,66996.0,66995.0,0.034]
[1718648171121,0.0631582,66996.0,66995.0,0.014]
[1718648171377,0.0621582,66996.0,66994.0,0.02]
[1718648171577,0.0611582,66996.0,66995.0,0.02]
[1718648171784,0.0611582,66996.0,66995.0,0.014]
[1718648171785,0.0621582,66996.0,66995.0,0.014]
[1718648172018,0.0631582,66996.0,66995.0,0.048]
[1718648172615,0.0621582,66996.0,66995.0,0.034]
[1718648172768,0.0621582,66996.0,66995.0,0.048]
[1718648172983,0.0631582,66996.0,66995.0,0.028]
[1718648173517,0.0631582,66996.0,66984.0,0.1944]
[1718648173518,0.3014582,66996.0,66984.0,0.1944]
[1718648173877,0.3024582,66996.0,66995.0,0.014]
[1718648174081,0.3014582,66996.0,66986.0,0.02]
[1718648174422,0.3014582,66996.0,66989.0,0.02]
[1718648174669,0.3014582,66996.0,66995.0,0.014]
[1718648174670,0.3024582,66996.0,66995.0,0.014]
[1718648174878,0.3024582,66996.0,66984.0,0.1944]
[1718648175076,0.3034582,66996.0,66995.0,0.014]
[1718648175224,0.3034582,66996.0,66995.0,0.028]
[1718648175225,0.3044582,66996.0,66995.0,0.028]
[1718648175428,0.3044582,66996.0,66995.0,0.014]
[1718648175634,0.45617076,66996.0,66995.0,0.014]
[1718648175843,0.3044582,66996.0,66995.0,0.028]
[1718648176623,0.3014582,66996.0,66983.0,0.07593072]
[1718648177046,0.3024582,66996.0,66995.0,0.014]
[1718648177504,0.3014582,66996.0,66983.0,0.07593072]
[1718648177813,0.3024582,66996.0,66995.0,0.014]
[1718648178020,0.47518708,66996.0,66995.0,0.014]
[1718648178226,0.56597328,66996.0,66995.0,0.028]
[1718648178437,0.54597328,66996.0,66995.0,0.028]
[1718648178681,0.56497328,66996.0,66995.0,0.014]
[1718648179091,0.56497328,66996.0,66983.0,0.014]
[1718648179324,0.02,66991.0,66983.0,0.014]
[1718648179548,0.3024582,66996.0,66983.0,0.014]
[1718648179549,0.5917,66986.0,66983.0,0.014]
[1718648179763,0.15272888,66990.0,66961.0,0.328835]
[1718648179764,1.05429745,66985.0,66984.0,0.00374718]
[1718648179985,1.05429745,66985.0,66961.0,0.000935]
[1718648179986,0.02,66977.0,66961.0,0.000935]
[1718648180190,0.5717,66979.0,66969.0,0.45558432]
[1718648180390,0.5717,66979.0,66964.0,0.1944]
[1718648180611,0.5717,66979.0,66970.0,0.00376069]
[1718648180817,0.5717,66979.0,66964.0,0.1944]
[1718648181021,0.05717,66978.0,66971.0,0.00376069]
[1718648181224,0.05717,66978.0,66964.0,0.1944]
[1718648181429,0.5717,66979.0,66969.0,0.1944]
[1718648181983,0.5717,66979.0,66970.0,0.00376069]
[1718648182593,0.15272888,66978.0,66970.0,0.00376069]
[1718648182799,0.5767,66979.0,66965.0,0.02]
[1718648183730,0.5767,66979.0,66971.0,0.00376069]
[1718648183731,0.92448034,66978.0,66971.0,0.00376069]
[1718648183932,0.92448034,66978.0,66961.0,0.000935]
[1718648183933,0.32989846,66977.0,66961.0,0.000935]
[1718648184125,0.46262734,66976.0,66961.0,0.000935]
[1718648184353,0.02,66973.0,66961.0,0.000935]
[1718648184493,0.17272888,66973.0,66961.0,0.000935]
[1718648184687,0.15272888,66973.0,66961.0,0.000935]
[1718648184912,0.15272888,66973.0,66956.0,0.19399532]
[1718648185115,0.15272888,66973.0,66962.0,0.00376069]
[1718648185344,0.02,66967.0,66953.0,0.3246]
[1718648185597,0.02,66967.0,66963.0,0.00376069]
[1718648185598,0.5506,66967.0,66963.0,0.00376069]
[1718648185798,0.5506,66967.0,66950.0,0.2489]
[1718648186153,0.30995431,66966.0,66951.0,0.00376069]
[1718648186356,0.08805543,66965.0,66951.0,0.00376069]
[1718648186981,0.5506,66967.0,66951.0,0.00376069]
[1718648187183,0.1,66971.0,66951.0,0.00376069]
[1718648187184,0.1,66971.0,66958.0,0.09593072]
[1718648187574,0.1,66971.0,66962.0,0.1944]
[1718648187701,0.3092,66973.0,66965.0,0.07593072]
[1718648187914,0.3092,66973.0,66968.0,0.1944]
[1718648187915,0.001,66973.0,66968.0,0.1944]
[1718648188115,0.001,66973.0,66972.0,0.07593072]
[1718648188317,0.01,66976.0,66966.0,0.15272888]
[1718648188951,0.01,66976.0,66967.0,0.00376069]
[1718648189151,0.0216232,66984.0,66965.0,0.07593072]
[1718648189387,0.0216232,66984.0,66968.0,0.00376069]
[1718648189388,0.02,66981.0,66968.0,0.00376069]
[1718648189589,0.014,66973.0,66972.0,0.001]
[1718648189750,0.02,66981.0,66969.0,0.00376069]
[1718648189920,0.30988679,66980.0,66969.0,0.00376069]
[1718648190120,0.30988679,66980.0,66965.0,0.07593072]
[1718648190327,0.02,66981.0,66970.0,0.00376069]
[1718648190527,0.07058663,66981.0,66965.0,0.07693072]
[1718648190739,0.30988682,66980.0,66971.0,0.00376069]
[1718648190930,0.30988682,66980.0,66965.0,0.07593072]
[1718648191151,0.30988682,66980.0,66972.0,0.00376069]
[1718648191314,0.30988682,66980.0,66965.0,0.07593072]
[1718648191315,0.32988682,66980.0,66965.0,0.07593072]
[1718648191521,0.05058663,66981.0,66960.0,0.2602]
[1718648191522,0.02,66977.0,66960.0,0.2602]
[1718648191747,0.05058663,66981.0,66961.0,0.15272888]
[1718648191748,0.63440374,66976.0,66961.0,0.15272888]
[1718648191988,0.2442,66975.0,66961.0,0.00376069]
[1718648192194,0.2440203,66975.0,66961.0,0.00376069]
[1718648192398,0.2440203,66975.0,66969.0,0.001]
[1718648192597,0.014,66973.0,66972.0,0.001]
[1718648193034,0.2440203,66975.0,66957.0,0.3039]
[1718648193439,0.2440203,66975.0,66972.0,0.07593072]
[1718648193440,0.009,66975.0,66972.0,0.07593072]
[1718648193863,0.009,66975.0,66973.0,0.00382155]
[1718648193864,0.005,66975.0,66973.0,0.00382155]
[1718648194267,0.007,66975.0,66973.0,0.00382155]
[1718648194892,0.002,66975.0,66973.0,0.00382155]
[1718648195309,0.014,66973.0,66972.0,0.001]
[1718648195526,0.014,66973.0,66970.0,0.1944]
[1718648195734,0.5706,66982.0,66970.0,0.19399125]
[1718648195936,0.008,66975.0,66973.0,0.001]
[1718648196146,0.014,66975.0,66974.0,0.92864392]
[1718648196350,0.006,66975.0,66974.0,1.3473596]
[1718648196826,0.05,66999.0,66990.0,0.5793]
[1718648197044,0.05,66999.0,66994.0,0.07593072]
[1718648198208,0.05,66999.0,66992.0,0.1944]
[1718648198409,0.05,66999.0,66993.0,0.07593072]
[1718648198807,0.05,66999.0,66992.0,0.34712888]
[1718648199632,0.0621582,66996.0,66992.0,0.36112888]
[1718648200022,0.0621582,66996.0,66992.0,0.38112888]
[1718648200226,0.0621582,66996.0,66992.0,0.39512888]
[1718648200449,0.0631582,66996.0,66992.0,0.39512888]
[1718648201159,0.0631582,66996.0,66993.0,0.02]
[1718648201359,0.0631582,66996.0,66992.0,0.39512888]
[1718648202011,0.0631582,66996.0,66993.0,0.02]
[1718648202280,0.0621582,66996.0,66992.0,0.38112888]
[1718648202524,0.0631582,66996.0,66993.0,0.013]
[1718648202864,0.0611582,66996.0,66983.0,0.5924]
[1718648203078,0.0611582,66996.0,66992.0,0.013]
[1718648203308,0.0611582,66996.0,66995.0,0.07593072]
[1718648203309,0.0621582,66996.0,66995.0,0.07593072]
[1718648203509,0.0621582,66996.0,66995.0,0.4430596]
[1718648203887,0.0631582,66996.0,66995.0,0.4430596]
[1718648205003,0.0631582,66996.0,66995.0,0.4570596]
[1718648205388,0.0631582,66996.0,66995.0,0.46077251]
[1718648205389,0.0611582,66996.0,66995.0,0.46077251]
[1718648206118,0.0611582,66996.0,66995.0,0.47477251]
[1718648207166,0.0611582,66996.0,66995.0,0.03171291]
[1718648207378,0.0611582,66996.0,66995.0,0.028]
[1718648207573,0.0611582,66996.0,66995.0,0.12393072]
[1718648207777,0.0611582,66996.0,66995.0,0.10393072]
[1718648208557,0.0611582,66996.0,66995.0,0.12393072]
[1718648208761,0.0611582,66996.0,66995.0,0.2766596]
[1718648209812,0.0611582,66996.0,66995.0,0.2566596]
[1718648210006,0.0611582,66996.0,66995.0,0.2766596]
[1718648211253,0.0611582,66996.0,66995.0,0.2566596]
[1718648211783,0.0611582,66996.0,66995.0,0.028]
[1718648213882,0.0611582,66996.0,66995.0,0.048]
[1718648214486,0.0611582,66996.0,66995.0,0.028]
[1718648215399,0.0611582,66996.0,66990.0,0.07593072]
[1718648215540,0.0611582,66996.0,66995.0,0.1944]
[1718648218294,0.0611582,66996.0,66995.0,0.34712888]
[1718648219169,0.0611582,66996.0,66995.0,0.15272888]
[1718648219399,0.0611582,66996.0,66995.0,0.25640579]
[1718648219714,0.0611582,66996.0,66995.0,0.25272888]
[1718648220347,0.0621582,66996.0,66995.0,0.25272888]
[1718648220751,0.0611582,66996.0,66995.0,0.25272888]
[1718648220949,0.0631582,66996.0,66995.0,0.26672888]
[1718648221153,0.0631582,66996.0,66995.0,0.16672888]
[1718648222009,0.0621582,66996.0,66995.0,0.15272888]
[1718648222425,0.0621582,66996.0,66995.0,0.16672888]
[1718648222796,0.0631582,66996.0,66995.0,0.17972888]
[1718648223252,0.0621582,66996.0,66995.0,0.16672888]
[1718648223454,0.0631582,66996.0,66995.0,0.56792995]
[1718648223680,0.0631582,66996.0,66995.0,0.58102888]
[1718648223895,0.0621582,66996.0,66995.0,0.57069816]
[1718648224322,0.0631582,66996.0,66995.0,0.58669816]
[1718648224718,0.0621582,66996.0,66995.0,0.63463057]
[1718648224914,0.0621582,66996.0,66995.0,0.7584956]
[1718648225114,0.0631582,66996.0,66995.0,0.7704956]